Workbook

Sheet Sheet1
B1: Orthogonal Trajectories for
C2: y' = f(x, y)
B4: This DIGMath program illustrates
B5: the concept of the orthogonal trajectories
B6: for any first order differential equation
D7: y' = f(x, y)
B8: with initial conditions x0 and y0
B9: extending from x = x0 to x = b.
A11: Enter the function in terms of both x and y:
E12: f(x, y) = | F12: x*(y+1)^3
A14: Now enter the initial conditions:
B15: The initial value x0 of x is | E15: 1
B16: The initial value y0 of y is | E16: 5
A18: To what value of x should the solutions extend? | I18: The solutions (in blue) of the D.E. y' = | N18: =F12 -> x*(y+1)^3
C19: xMax = | D19: 5
I20: Select the starting height | L20: ="("&TEXT(y0,"#")&" - "&TEXT(y0+6,"#")&")" -> (5 - 11) | M20: of middle solution curve
J22: =5+K22*0.25 -> 7.5 | K22: 10
A25: Click each item below for suggestions and investigations | I25: The orthogonal trajectories (in red)
B26: Item 1
B27: Item 2 | I27: Select the starting height | L27: ="("&TEXT(y0,"#")&" - "&TEXT(y0+8,"#")&")" -> (5 - 13) | M27: of middle orthogonal trajectory
B28: Item 3
B29: Item 4 | J29: =5+K29*0.25 -> 7.5 | K29: 10
A34: To access/download all the DIGMath Apps for Differential Equations and Matrix Algebra
A35: Click this link: | C35: DIGMath for Differential Equations/Matrix Algebra
A37: Created by: Sheldon P. Gordon | D37: © 2026
A38: Farmingdale State College
A39: Development of this module was supported by the
A40: NSF's Division of Undergraduate Education
A41: under grants DUE-0310123 and DUE-0442160.

Sheet Sheet2
C1: x | D1: y | E1: y' = f(x,y) | F1: y | G1: y' = f(x,Z) | H1: Z | I1: y' = f(x,W) | J1: W | M1: "-1/Y' " | N1: 2nd Y | O1: "-1/Z' " | P1: 2nd Z | Q1: "-1/W' " | R1: 2nd W
N2: =Sheet1!#REF! -> 
C3: =x0 -> 1 | D3: =y0 -> 5 | E3: =x*(y+1) -> 6 | F3: =y0 -> 5 | G3: =x*SIN(x) -> 0.8414709848 | H3: =Sheet1!J22 -> 7.5 | I3: =x*(w+1) -> 12 | J3: =F3+6 -> 11 | M3: =-1/E3 -> -0.1666666667 | N3: =y0 -> 5 | O3: =-1/H3 -> -0.1333333333 | P3: =Sheet1!J29 -> 7.5 | Q3: =1/J3 -> 0.09090909091 | R3: 13
A4: delta x = | B4: =(b-x0)/260 -> 0.01538461538 | C4: =C3+dx -> 1.015384615 | D4: =F4 -> 5.092307692 | E4: 6.186035503 | F4: =F3+E3*dx -> 5.092307692 | G4: =x*(z+1) -> 8.724497041 | H4: =F4+H$3-5 -> 7.592307692 | I4: 14.81680473 | J4: =H4+6 -> 13.59230769 | M4: -0.161654423 | N4: =N3+M3*dx -> 4.997435897 | O4: =-1/H4 -> -0.1317122594 | P4: =P3+$M3*dx -> 7.497435897 | Q4: =1/J4 -> 0.07357102434 | R4: =R3+$M3*dx -> 12.9974359
C5: 1.030769231 | D5: =F5 -> 5.187477469 | E5: 6.377861391 | F5: 5.187477469 | G5: 8.954784468 | H5: =F5+H$3-5 -> 7.687477469 | I5: 15.13939985 | J5: =H5+6 -> 13.68747747 | M5: -0.1567923695 | N5: =N4+M4*dx -> 4.994948906 | O5: -0.1300816821 | P5: 7.494948906 | Q5: 0.07305948099 | R5: 12.99494891
B6: =x0 -> 1 | C6: 1.046153846 | D6: 5.285598414 | E6: 6.575702956 | F6: 5.285598414 | G6: 9.191087571 | H6: 7.785598414 | I6: 15.46801065 | J6: 13.78559841 | M6: -0.1520749959 | N6: 4.992536716 | O6: -0.1284422785 | P6: 7.492536716 | Q6: 0.07253946981 | R6: 12.99253672
B7: =b -> 5 | C7: 1.061538462 | D7: 5.386763075 | E7: 6.779794648 | F7: 5.386763075 | G7: 9.433640802 | H7: 7.886763075 | I7: 15.80287157 | J7: 13.88676307 | M7: -0.1474970927 | N7: 4.990197101 | O7: -0.1267947307 | P7: 7.490197101 | Q7: 0.07201102191 | R7: 12.9901971
C8: 1.076923077 | D8: 5.491067608 | E8: 6.990380501 | F8: 5.491067608 | G8: 9.682688193 | H8: 7.991067608 | I8: 16.14422665 | J8: 13.99106761 | M8: -0.1430537293 | N8: 4.987927915 | O8: -0.1251397246 | P8: 7.487927915 | Q8: 0.07147417395 | R8: 12.98792791
C9: 1.092307692 | D9: 5.598611923 | E9: 7.207714562 | F9: 5.598611923 | G9: 9.938483793 | H9: 8.098611923 | I9: 16.49232995 | J9: 14.09861192 | M9: -0.1387402333 | N9: 4.985727088 | O9: -0.1234779502 | P9: 7.485727088 | Q9: 0.07092896843 | R9: 12.98572709
C10: 1.107692308 | D10: 5.709499839 | E10: 7.432061361 | F10: 5.709499839 | G10: 10.20129213 | H10: 8.209499839 | I10: 16.84744598 | J10: 14.20949984 | M10: -0.1345521722 | N10: 4.983592623 | O10: -0.1218101004 | P10: 7.483592623 | Q10: 0.07037545384 | R10: 12.98359262
C11: 1.123076923 | D11: 5.823839245 | E11: 7.663696383 | F11: 5.823839245 | G11: 10.47138869 | H11: 8.323839245 | I11: 17.20985023 | J11: 14.32383924 | M11: -0.1304853363 | N11: 4.981522589 | O11: -0.1201368708 | P11: 7.481522589 | Q11: 0.06981368493 | R11: 12.98152259
C12: 1.138461538 | D12: 5.941742266 | E12: 7.90290658 | F12: 5.941742266 | G12: 10.74906043 | H12: 8.441742266 | I12: 17.57982966 | J12: 14.44174227 | M12: -0.1265357233 | N12: 4.979515123 | O12: -0.1184589589 | P12: 7.479515123 | Q12: 0.06924372292 | R12: 12.97951512
C13: 1.153846154 | D13: 6.063325444 | E13: 8.149990897 | F13: 6.063325444 | G13: 11.03460628 | H13: 8.563325444 | I13: 17.95768321 | J13: 14.56332544 | M13: -0.1226995235 | N13: 4.977568419 | O13: -0.1167770636 | P13: 7.477568419 | Q13: 0.06866563573 | R13: 12.97756842
C14: 1.169230769 | D14: 6.18870992 | E14: 8.405260829 | F14: 6.18870992 | G14: 11.32833775 | H14: 8.68870992 | I14: 18.34372237 | J14: 14.68870992 | M14: -0.1189731075 | N14: 4.975680734 | O14: -0.1150918847 | P14: 7.475680734 | Q14: 0.06807949816 | R14: 12.97568073
C15: 1.184615385 | D15: 6.318021625 | E15: 8.669041002 | F15: 6.318021625 | G15: 11.63057946 | H15: 8.818021625 | I15: 18.73827177 | J15: 14.81802162 | M15: -0.1153530131 | N15: 4.973850379 | O15: -0.113404122 | P15: 7.473850379 | Q15: 0.06748539213 | R15: 12.97385038
C16: 1.2 | D16: 6.451391486 | E16: 8.941669784 | F16: 6.451391486 | G16: 11.94166978 | H16: 8.951391486 | I16: 19.14166978 | J16: 14.95139149 | M16: -0.1118359349 | N16: 4.972075717 | O16: -0.111714475 | P16: 7.472075717 | Q16: 0.06688340687 | R16: 12.97207572
C17: 1.215384615 | D17: 6.588955637 | E17: 9.223499928 | F17: 6.588955637 | G17: 12.26196147 | H17: 9.088955637 | I17: 19.55426916 | J17: 15.08895564 | M17: -0.1084187139 | N17: 4.970355164 | O17: -0.1100236419 | P17: 7.470355164 | Q17: 0.06627363908 | R17: 12.97035516
C18: 1.230769231 | D18: 6.730855636 | E18: 9.514899244 | F18: 6.730855636 | G18: 12.59182232 | H18: 9.230855636 | I18: 19.97643771 | J18: 15.23085564 | M18: -0.1050983278 | N18: 4.968687184 | O18: -0.1083323193 | P18: 7.468687184 | Q18: 0.06565619319 | R18: 12.96868718
C19: 1.246153846 | D19: 6.877238701 | E19: 9.816251304 | F19: 6.877238701 | G19: 12.93163592 | H19: 9.377238701 | I19: 20.408559 | J19: 15.3772387 | M19: -0.1018718826 | N19: 4.967070287 | O19: -0.1066412013 | P19: 7.467070287 | Q19: 0.06503118144 | R19: 12.96707029
C20: 1.261538462 | D20: 7.028257952 | E20: 10.12795619 | F20: 7.028257952 | G20: 13.28180234 | H20: 9.528257952 | I20: 20.85103311 | J20: 15.52825795 | M20: -0.09873660408 | N20: 4.965503027 | O20: -0.104950979 | P20: 7.465503027 | Q20: 0.06439872413 | R20: 12.96550303
C21: 1.276923077 | D21: 7.184072662 | E21: 10.45043125 | F21: 7.184072662 | G21: 13.64273894 | H21: 9.684072662 | I21: 21.3042774 | J21: 15.68407266 | M21: -0.09568983102 | N21: 4.963984002 | O21: -0.1032623396 | P21: 7.463984002 | Q21: 0.0637589497 | R21: 12.963984 | S21: Range: Min(Max1,Max2), Max(Min1, Min2)
C22: 1.292307692 | D22: 7.344848528 | E22: 10.78411194 | F22: 7.344848528 | G22: 14.01488117 | H22: 9.844848528 | I22: 21.76872733 | J22: 15.84484853 | M22: -0.09272900775 | N22: 4.962511851 | O22: -0.1015759661 | P22: 7.462511851 | Q22: 0.06311199493 | R22: 12.96251185 | T22: =MIN(_Max1,_Max2) ->  | V22: =MAX(_Min1,_Min2) -> 
C23: 1.307692308 | D23: 7.510757942 | E23: 11.12945269 | F23: 7.510757942 | G23: 14.39868346 | H23: 10.01075794 | I23: 22.24483731 | J23: 16.01075794 | M23: -0.08985167802 | N23: 4.961085251 | O23: -0.09989253619 | P23: 7.461085251 | Q23: 0.06245800502 | R23: 12.96108525
C24: 1.323076923 | D24: 7.681980291 | E24: 11.48692777 | F24: 7.681980291 | G24: 14.79462008 | H24: 10.18198029 | I24: 22.73308162 | J24: 16.18198029 | M24: -0.08705547906 | N24: 4.959702917 | O24: -0.09821272202 | P24: 7.459702917 | Q24: 0.06179713372 | R24: 12.95970292
C25: 1.338461538 | D25: 7.858702257 | E25: 11.85703225 | F25: 7.858702257 | G25: 15.2031861 | H25: 10.35870226 | I25: 23.23395533 | J25: 16.35870226 | M25: -0.08433813612 | N25: 4.958363602 | O25: -0.09653718923 | P25: 7.458363602 | Q25: 0.06112954342 | R25: 12.9583636
C26: 1.353846154 | D26: 8.041118138 | E26: 12.24028302 | F26: 8.041118138 | G26: 15.6248984 | H26: 10.54111814 | I26: 23.74797533 | J26: 16.54111814 | M26: -0.08169745737 | N26: 4.957066093 | O26: -0.0948665964 | P26: 7.457066093 | Q26: 0.06045540523 | R26: 12.95706609
C27: 1.369230769 | D27: 8.229430184 | E27: 12.63721979 | F27: 8.229430184 | G27: 16.06029671 | H27: 10.72943018 | I27: 24.27568133 | J27: 16.72943018 | M27: -0.07913132924 | N27: 4.955809209 | O27: -0.09320159438 | P27: 7.455809209 | Q27: 0.05977489902 | R27: 12.95580921
C28: 1.384615385 | D28: 8.42384895 | E28: 13.04840624 | F28: 8.42384895 | G28: 16.5099447 | H28: 10.92384895 | I28: 24.81763701 | J28: 16.92384895 | M28: -0.07663771205 | N28: 4.954591804 | O28: -0.09154282566 | P28: 7.454591804 | Q28: 0.0590882135 | R28: 12.9545918
C29: 1.4 | D29: 8.624593662 | E29: 13.47443113 | F29: 8.624593662 | G29: 16.97443113 | H29: 11.12459366 | I29: 25.37443113 | J29: 17.12459366 | M29: -0.0742146359 | N29: 4.953412762 | O29: -0.0898909237 | P29: 7.453412762 | Q29: 0.05839554618 | R29: 12.95341276
C30: 1.415384615 | D30: 8.831892602 | E30: 13.91590953 | F30: 8.831892602 | G30: 17.45437107 | H30: 11.3318926 | I30: 25.94667876 | J30: 17.3318926 | M30: -0.07186019699 | N30: 4.952270998 | O30: -0.08824651231 | P30: 7.452270998 | Q30: 0.05769710342 | R30: 12.952271
C31: 1.430769231 | D31: 9.045983518 | E31: 14.37348411 | F31: 9.045983518 | G31: 17.95040719 | H31: 11.54598352 | I31: 26.53502257 | J31: 17.54598352 | M31: -0.06957255404 | N31: 4.951165457 | O31: -0.08661020505 | P31: 7.451165457 | Q31: 0.05699310039 | R31: 12.95116546
C32: 1.446153846 | D32: 9.267114043 | E32: 14.84782646 | F32: 9.267114043 | G32: 18.46321108 | H32: 11.76711404 | I32: 27.14013415 | J32: 17.76711404 | M32: -0.06734992509 | N32: 4.95009511 | O32: -0.0849826046 | P32: 7.45009511 | Q32: 0.05628376098 | R32: 12.95009511
C33: 1.461538462 | D33: 9.495542142 | E33: 15.33963852 | F33: 9.495542142 | G33: 18.99348467 | H33: 11.99554214 | I33: 27.76271544 | J33: 17.99554214 | M33: -0.06519058445 | N33: 4.949058957 | O33: -0.08336430218 | P33: 7.449058957 | Q33: 0.05556931778 | R33: 12.94905896
C34: 1.476923077 | D34: 9.731536581 | E34: 15.84965403 | F34: 9.731536581 | G34: 19.54196172 | H34: 12.23153658 | I34: 28.40350018 | J34: 18.23153658 | M34: -0.06309285984 | N34: 4.948056025 | O34: -0.08175587698 | P34: 7.448056025 | Q34: 0.05485001199 | R34: 12.94805602
C35: 1.492307692 | D35: 9.975377412 | E35: 16.37864014 | F35: 9.975377412 | G35: 20.10940937 | H35: 12.47537741 | I35: 29.06325552 | J35: 18.47537741 | M35: -0.06105512983 | N35: 4.947085366 | O35: -0.08015789559 | P35: 7.447085366 | Q35: 0.05412609322 | R35: 12.94708537
C36: 1.507692308 | D36: 10.22735649 | E36: 16.92739902 | F36: =F35+E35*dx -> 10.22735649 | G36: 20.69662979 | H36: 12.72735649 | I36: 29.74278363 | J36: 18.72735649 | M36: -0.05907582133 | N36: 4.946146056 | O36: -0.07857091146 | P36: 7.446146056 | Q36: 0.05339781941 | R36: 12.94614606
C37: 1.523076923 | D37: 10.48777801 | E37: 17.49676959 | F37: 10.48777801 | G37: 21.3044619 | H37: 12.98777801 | I37: 30.44292344 | J37: 18.98777801 | M37: -0.05715340736 | N37: 4.945237197 | O37: -0.07699546442 | P37: 7.445237197 | Q37: 0.05266545666 | R37: 12.9452372
C38: 1.538461538 | D38: 10.75695909 | E38: 18.08762936 | F38: 10.75695909 | G38: 21.93378321 | H38: 13.25695909 | I38: 31.16455244 | J38: 19.25695909 | M38: -0.05528640487 | N38: 4.944357914 | O38: -0.07543208013 | P38: 7.444357914 | Q38: 0.05192927895 | R38: 12.94435791
C39: 1.553846154 | D39: 11.03523031 | E39: 18.70089632 | F39: 11.03523031 | G39: 22.58551171 | H39: 13.53523031 | I39: 31.90858863 | J39: 19.53523031 | M39: -0.05347337276 | N39: 4.943507354 | O39: -0.07388126965 | P39: 7.443507354 | Q39: 0.05118956799 | R39: 12.94350735
C40: 1.569230769 | D40: 11.3229364 | E40: 19.33753097 | F40: 11.3229364 | G40: 23.26060789 | H40: 13.8229364 | I40: 32.67599251 | J40: 19.8229364 | M40: -0.05171291007 | N40: 4.942684687 | O40: -0.07234352896 | P40: 7.442684687 | Q40: 0.05044661294 | R40: 12.94268469
C41: 1.584615385 | D41: 11.62043688 | E41: 19.99853844 | F41: 11.62043688 | G41: 23.9600769 | H41: 14.12043688 | I41: 33.46776921 | J41: 20.12043688 | M41: -0.05000365417 | N41: 4.941889103 | O41: -0.07081933856 | P41: 7.441889103 | Q41: 0.04970071008 | R41: 12.9418891
C42: 1.6 | D42: 11.9281067 | E42: 20.68497072 | F42: 11.9281067 | G42: 24.68497072 | H42: 14.4281067 | I42: 34.28497072 | J42: 20.4281067 | M42: -0.04834427921 | N42: 4.941119816 | O42: -0.06930916306 | P42: 7.441119816 | Q42: 0.04895216256 | R42: 12.94111982
C43: 1.615384615 | D43: 12.24633702 | E43: 21.39792903 | F43: 12.24633702 | G43: 25.43639057 | H43: 14.74633702 | I43: 35.12869826 | J43: 20.74633702 | M43: -0.04673349456 | N43: 4.940376058 | O43: -0.0678134508 | P43: 7.440376058 | Q43: 0.04820128001 | R43: 12.94037606
C44: 1.630769231 | D44: 12.57553593 | E44: 22.13856628 | F44: 12.57553593 | G44: 26.21548936 | H44: 15.07553593 | I44: 36.00010475 | J44: 21.07553593 | M44: -0.04517004341 | N44: 4.939657081 | O44: -0.06633263353 | P44: 7.439657081 | Q44: 0.04744837822 | R44: 12.93965708
C45: 1.646153846 | D45: 12.91612926 | E45: 22.9080897 | F45: 12.91612926 | G45: 27.02347431 | H45: 15.41612926 | I45: 36.90039739 | J45: 21.41612926 | M45: -0.04365270143 | N45: 4.938962158 | O45: -0.06486712607 | P45: 7.438962158 | Q45: 0.0466937787 | R45: 12.93896216
C46: 1.661538462 | D46: 13.26856141 | E46: 23.70776357 | F46: 13.26856141 | G46: 27.86160972 | H46: 15.76856141 | I46: 37.83084049 | J46: 21.76856141 | M46: -0.04218027555 | N46: 4.938290578 | O46: -0.06341732605 | P46: 7.438290578 | Q46: 0.04593780826 | R46: 12.93829058
C47: 1.676923077 | D47: 13.63329623 | E47: 24.53891214 | F47: 13.63329623 | G47: 28.73121983 | H47: 16.13329623 | I47: 38.79275829 | J47: 22.13329623 | M47: -0.04075160277 | N47: 4.93764165 | O47: -0.06198361363 | P47: 7.43764165 | Q47: 0.04518079863 | R47: 12.93764165
C48: 1.692307692 | D48: 14.01081795 | E48: 25.40292269 | F48: 14.01081795 | G48: 29.63369192 | H48: 16.51081795 | I48: 39.78753808 | J48: 22.51081795 | M48: -0.03936554908 | N48: 4.937014703 | O48: -0.06056635127 | P48: 7.437014703 | Q48: 0.04442308591 | R48: 12.9370147
C49: 1.707692308 | D49: 14.40163215 | E49: 26.30124875 | F49: 14.40163215 | G49: 30.57047952 | H49: 16.90163215 | I49: 40.81663336 | J49: 22.90163215 | M49: -0.03802100842 | N49: 4.936409079 | O49: -0.05916588357 | P49: 7.436409079 | Q49: 0.04366501014 | R49: 12.93640908
C50: 1.723076923 | D50: 14.80626675 | E50: 27.23541347 | F50: 14.80626675 | G50: 31.54310578 | H50: 17.30626675 | I50: 41.88156732 | J50: 23.30626675 | M50: -0.03671690173 | N50: 4.93582414 | O50: -0.05778253708 | P50: 7.43582414 | Q50: 0.04290691473 | R50: 12.93582414
C51: 1.738461538 | D51: 15.22527311 | E51: 28.20701325 | F51: 15.22527311 | G51: 32.55316709 | H51: 17.72527311 | I51: 42.98393633 | J51: 23.72527311 | M51: -0.03545217607 | N51: 4.935259265 | O51: -0.05641662015 | P51: 7.435259265 | Q51: 0.042149146 | R51: 12.93525926
C52: 1.753846154 | D52: 15.65922716 | E52: 29.21772148 | F52: 15.65922716 | G52: 33.60233686 | H52: 18.15922716 | I52: 44.12541378 | J52: 24.15922716 | M52: -0.03422580371 | N52: 4.934713847 | O52: -0.05506842286 | P52: 7.434713847 | Q52: 0.04139205255 | R52: 12.93471385
C53: 1.769230769 | D53: 16.10873056 | E53: 30.26929254 | F53: 16.10873056 | G53: 34.69236946 | H53: 18.60873056 | I53: 45.30775408 | J53: 24.60873056 | M53: -0.03303678138 | N53: 4.934187296 | O53: -0.05373821694 | P53: 7.434187296 | Q53: 0.04063598475 | R53: 12.9341873
C54: 1.784615385 | D54: 16.57441199 | E54: 31.36356601 | F54: 16.57441199 | G54: 35.82510447 | H54: 19.07441199 | I54: 46.53279678 | J54: 25.07441199 | M54: -0.03188412949 | N54: 4.933679038 | O54: -0.05242625569 | P54: 7.433679038 | Q54: 0.03988129414 | R54: 12.93367904
C55: 1.8 | D55: 17.05692839 | E55: 32.5024711 | F55: 17.05692839 | G55: 37.0024711 | H55: 19.55692839 | I55: 47.8024711 | J55: 25.55692839 | M55: -0.03076689144 | N55: 4.933188513 | O55: -0.05113277403 | P55: 7.433188513 | Q55: 0.03912833283 | R55: 12.93318851
C56: 1.815384615 | D56: 17.55696641 | E56: 33.68803132 | F56: 17.55696641 | G56: 38.22649286 | H56: 20.05696641 | I56: 49.11880055 | J56: 26.05696641 | M56: -0.02968413293 | N56: 4.932715176 | O56: -0.04985798848 | P56: 7.432715176 | Q56: 0.03837745286 | R56: 12.93271518
C57: 1.830769231 | D57: 18.07524381 | E57: 34.92236944 | F57: 18.07524381 | G57: 39.49929251 | H57: 20.57524381 | I57: 50.4839079 | J57: 26.57524381 | M57: -0.02863494133 | N57: 4.932258497 | O57: -0.04860209722 | P57: 7.432258497 | Q57: 0.03762900567 | R57: 12.9322585
C58: 1.846153846 | D58: 18.61251103 | E58: 36.20771268 | F58: 18.61251103 | G58: 40.82309729 | H58: 21.11251103 | I58: 51.90002037 | J58: 27.11251103 | M58: -0.02761842508 | N58: 4.931817959 | O58: -0.04736528016 | P58: 7.431817959 | Q58: 0.03688334138 | R58: 12.93181796
C59: 1.861538462 | D59: 19.16955277 | E59: 37.54639823 | F59: 19.16955277 | G59: 42.20024438 | H59: 21.66955277 | I59: 53.36947515 | J59: 27.66955277 | M59: -0.02663371315 | N59: 4.93139306 | O59: -0.04614769907 | P59: 7.43139306 | Q59: 0.03614080822 | R59: 12.93139306
C60: 1.876923077 | D60: 19.74718966 | E60: 38.94087906 | F60: 19.74718966 | G60: 43.63318675 | H60: 22.24718966 | I60: 54.89472521 | J60: 28.24718966 | M60: -0.02567995444 | N60: 4.930983311 | O60: -0.04494949768 | P60: 7.430983311 | Q60: 0.03540175189 | R60: 12.93098331
C61: 1.892307692 | D61: 20.34628011 | E61: 40.39373005 | F61: 20.34628011 | G61: 45.12449928 | H61: 22.84628011 | I61: 56.47834544 | J61: 28.84628011 | M61: -0.02475631735 | N61: 4.930588235 | O61: -0.04377080187 | P61: 7.430588235 | Q61: 0.03466651493 | R61: 12.93058823
C62: 1.907692308 | D62: 20.96772211 | E62: 41.90765449 | F62: 20.96772211 | G62: 46.67688526 | H62: 23.46772211 | I62: 58.1230391 | J62: 29.46772211 | M62: -0.02386198923 | N62: 4.930207368 | O62: -0.04261171985 | P62: 7.430207368 | Q62: 0.03393543608 | R62: 12.93020737
C63: 1.923076923 | D63: 21.61245526 | E63: 43.48549088 | F63: 21.61245526 | G63: 48.29318318 | H63: 24.11245526 | I63: 59.83164472 | J63: 30.11245526 | M63: -0.02299617596 | N63: 4.929840261 | O63: -0.04147234238 | P63: 7.429840261 | Q63: 0.03320884968 | R63: 12.92984026
C64: 1.938461538 | D64: 22.28146281 | E64: 45.13022021 | F64: 22.28146281 | G64: 49.97637406 | H64: 24.78146281 | I64: 61.60714329 | J64: 30.78146281 | M64: -0.0221581015 | N64: 4.929486473 | O64: -0.04035274301 | P64: 7.429486473 | Q64: 0.03248708504 | R64: 12.92948647
C65: 1.953846154 | D65: 22.97577389 | E65: 46.8449736 | F65: 22.97577389 | G65: 51.72958898 | H65: 25.47577389 | I65: 63.4526659 | J65: 31.47577389 | M65: -0.02134700744 | N65: 4.92914558 | O65: -0.03925297832 | P65: 7.42914558 | Q65: 0.03177046587 | R65: 12.92914558
C66: 1.969230769 | D66: 23.69646579 | E66: 48.63304032 | F66: 23.69646579 | G66: 53.55611725 | H66: 26.19646579 | I66: 65.37150186 | J66: 32.19646579 | M66: -0.02056215267 | N66: 4.928817164 | O66: -0.03817308823 | P66: 7.428817164 | Q66: 0.03105930963 | R66: 12.92881716
C67: 1.984615385 | D67: 24.44466641 | E67: =x*(y+1) -> 50.49787641 | F67: 24.44466641 | G67: =x*(z+1) -> 55.45941487 | H67: 26.94466641 | I67: =x*(w+1) -> 67.36710718 | J67: 32.94466641 | M67: =-1/E67 -> -0.01980281293 | N67: 4.928500823 | O67: -0.03711309633 | P67: 7.428500823 | Q67: 0.03035392702 | R67: 12.92850082
C68: =C67+dx -> 2 | D68: 25.22155682 | E68: 52.44311363 | F68: =F67+E67*dx -> 25.22155682 | G68: 57.44311363 | H68: 27.72155682 | I68: 69.44311363 | J68: 33.72155682 | M68: -0.01906828048 | N68: 4.928196165 | O68: =-1/H68 -> -0.03607301014 | P68: =P67+$M67*dx -> 7.428196165 | Q68: =1/J68 -> 0.02965462139 | R68: =R67+$M67*dx -> 12.92819616
C69: 2.015384615 | D69: =F69 -> 26.02837395 | E69: 54.47256903 | F69: 26.02837395 | G69: 59.51103057 | H69: =F69+H$3-5 -> 28.52837395 | I69: 71.60333827 | J69: =H69+6 -> 34.52837395 | M69: -0.01835786374 | N69: =N68+M68*dx -> 4.927902806 | O69: -0.03505282151 | P69: 7.427902806 | Q69: 0.02896168819 | R69: 12.92790281
C70: 2.030769231 | D70: 26.86641347 | E70: 56.59025505 | F70: 26.86641347 | G70: 61.66717813 | H70: 29.36641347 | I70: 73.85179351 | J70: 35.36641347 | M70: -0.01767088696 | N70: 4.927620378 | O70: -0.03405250699 | P70: 7.427620378 | Q70: 0.02827541449 | R70: 12.92762038
C71: 2.046153846 | D71: 27.73703278 | E71: 58.80039015 | F71: 27.73703278 | G71: 63.91577477 | H71: 30.23703278 | I71: 76.19269784 | J71: 36.23703278 | M71: -0.01700668988 | N71: 4.927348518 | O71: -0.03307202817 | P71: 7.427348518 | Q71: 0.02759607847 | R71: 12.92734852
C72: 2.061538462 | D72: 28.64165417 | E72: 61.10741013 | F72: 28.64165417 | G72: 66.26125628 | H72: 31.14165417 | I72: 78.63048705 | J72: 37.14165417 | M72: -0.01636462743 | N72: 4.927086877 | O72: -0.03211133213 | P72: 7.427086877 | Q72: 0.02692394893 | R72: 12.92708688
C73: 2.076923077 | D73: 29.58176817 | E73: 63.51598004 | F73: 29.58176817 | G73: 68.70828774 | H73: 32.08176817 | I73: 81.1698262 | J73: 38.08176817 | M73: -0.01574406943 | N73: 4.926835113 | O73: -0.03117035179 | P73: 7.426835113 | Q73: 0.0262592849 | R73: 12.92683511
C74: 2.092307692 | D74: 30.55893709 | E74: 66.03100684 | F74: 30.55893709 | G74: 71.26177607 | H74: 33.05893709 | I74: 83.81562223 | J74: 39.05893709 | M74: -0.0151444003 | N74: 4.926592897 | O74: -0.03024900641 | P74: 7.426592897 | Q74: 0.0256023352 | R74: 12.9265929
C75: 2.107692308 | D75: 31.57479874 | E75: 68.65765272 | F75: 31.57479874 | G75: 73.92688349 | H75: 34.07479874 | I75: 86.57303734 | J75: 40.07479874 | M75: -0.01456501876 | N75: 4.926359906 | O75: -0.02934720195 | P75: 7.426359906 | Q75: 0.02495333805 | R75: 12.92635991
C76: 2.123076923 | D76: 32.63107032 | E76: 71.40134929 | F76: 32.63107032 | G76: 76.7090416 | H76: 35.13107032 | I76: 89.44750314 | J76: 41.13107032 | M76: -0.01400533757 | N76: 4.926135829 | O76: -0.02846483159 | P76: 7.426135829 | Q76: 0.02431252074 | R76: 12.92613583
C77: 2.138461538 | D77: 33.72955261 | E77: 74.26781251 | F77: 33.72955261 | G77: 79.61396636 | H77: 36.22955261 | I77: 92.44473559 | J77: 42.22955261 | M77: -0.01346478328 | N77: 4.925920362 | O77: -0.02760177611 | P77: 7.425920362 | Q77: 0.02368009932 | R77: 12.92592036
C78: 2.153846154 | D78: 34.87213435 | E78: 77.26305859 | F78: 34.87213435 | G78: 82.64767397 | H78: 37.37213435 | I78: 95.5707509 | J78: 43.37213435 | M78: -0.01294279593 | N78: 4.925713211 | O78: -0.02675790445 | P78: 7.425713211 | Q78: 0.0230562783 | R78: 12.92571321
C79: 2.169230769 | D79: 36.06079678 | E79: 80.39342072 | F79: 36.06079678 | G79: 85.81649764 | H79: 38.56079678 | I79: 98.83188226 | J79: 44.56079678 | M79: -0.01243882884 | N79: 4.925514091 | O79: -0.02593307409 | P79: 7.425514091 | Q79: 0.02244125043 | R79: 12.92551409
C80: 2.184615385 | D80: 37.29761864 | E80: 83.66556688 | F80: 37.29761864 | G80: 89.12710534 | H80: 39.79761864 | I80: 102.2347976 | J80: 45.79761864 | M80: -0.01195234835 | N80: 4.925322725 | O80: -0.02512713158 | P80: 7.425322725 | Q80: 0.02183519645 | R80: 12.92532272
C81: 2.2 | D81: 38.58478121 | E81: 87.08651866 | F81: 38.58478121 | G81: 92.58651866 | H81: 41.08478121 | I81: 105.7865187 | J81: 47.08478121 | M81: -0.01148283357 | N81: 4.925138843 | O81: -0.02433991299 | P81: 7.425138843 | Q81: 0.02123828495 | R81: 12.92513884
C82: 2.215384615 | D82: 39.9245738 | E82: 90.6636712 | F82: 39.9245738 | G82: 96.20213274 | H82: 42.4245738 | I82: 109.4944404 | J82: 48.4245738 | M82: -0.01102977617 | N82: 4.924962184 | O82: -0.02357124445 | P82: 7.424962184 | Q82: 0.0206506722 | R82: 12.92496218
C83: 2.230769231 | D83: 41.31939952 | E83: 94.4048143 | F83: 41.31939952 | G83: 99.98173738 | H83: 43.81939952 | I83: 113.3663528 | J83: 49.81939952 | M83: -0.01059268012 | N83: 4.924792495 | O83: -0.02282094257 | P83: 7.424792495 | Q83: 0.02007250207 | R83: 12.92479249
C84: 2.246153846 | D84: 42.77178127 | E84: 98.31815486 | F84: 42.77178127 | G84: 103.9335395 | H84: 45.27178127 | I84: 117.4104626 | J84: 51.27178127 | M84: -0.0101710615 | N84: 4.92462953 | O84: -0.02208881497 | P84: 7.42462953 | Q84: 0.01950390595 | R84: 12.92462953
C85: 2.261538462 | D85: 44.28436827 | E85: 102.4123406 | F85: 44.28436827 | G85: 108.0661867 | H85: 46.78436827 | I85: 121.6354175 | J85: 52.78436827 | M85: -0.009764448255 | N85: 4.924473053 | O85: -0.02137466075 | P85: 7.424473053 | Q85: 0.01894500271 | R85: 12.92447305
C86: 2.276923077 | D86: 45.85994274 | E86: 106.696485 | F86: 45.85994274 | G86: 112.3887927 | H86: 48.35994274 | I86: 126.0503312 | J86: 54.35994274 | M86: -0.009372379979 | N86: 4.92432283 | O86: -0.02067827097 | P86: 7.42432283 | Q86: 0.0183958987 | R86: 12.92432283
C87: 2.292307692 | D87: 47.50142713 | E87: 111.1801945 | F87: 47.50142713 | G87: 116.9109637 | H87: 50.00142713 | I87: 130.6648099 | J87: 56.00142713 | M87: -0.008994407723 | N87: 4.92417864 | O87: -0.01999942917 | P87: 7.42417864 | Q87: 0.01785668779 | R87: 12.92417864
C88: 2.307692308 | D88: 49.21189166 | E88: 115.8735961 | F88: 49.21189166 | G88: 121.6428269 | H88: 51.71189166 | I88: 135.4889807 | J88: 57.71189166 | M88: -0.008630093769 | N88: 4.924040264 | O88: -0.0193379118 | P88: 7.424040264 | Q88: 0.01732745144 | R88: 12.92404026
C89: 2.323076923 | D89: 50.99456237 | E89: 120.787368 | F89: 50.99456237 | G89: 126.5950603 | H89: 53.49456237 | I89: 140.5335218 | J89: 59.49456237 | M89: -0.008279011431 | N89: 4.923907494 | O89: -0.01869348875 | P89: 7.423907494 | Q89: 0.01680825878 | R89: 12.92390749
C90: 2.338461538 | D90: 52.85282957 | E90: 125.9327707 | F90: 52.85282957 | G90: 131.7789245 | H90: 55.35282957 | I90: 145.8096938 | J90: 61.35282957 | M90: -0.007940744848 | N90: 4.923780124 | O90: -0.01806592378 | P90: 7.423780124 | Q90: 0.01629916676 | R90: 12.92378012
C91: 2.353846154 | D91: 54.79025681 | E91: 131.3216814 | F91: 54.79025681 | G91: 137.2062968 | H91: 57.29025681 | I91: 151.3293737 | J91: 63.29025681 | M91: -0.007614888793 | N91: 4.923657959 | O91: -0.01745497499 | P91: 7.423657959 | Q91: 0.01580022029 | R91: 12.92365796
C92: 2.369230769 | D92: 56.81059037 | E92: 136.9666295 | F92: 56.81059037 | G92: 142.8897064 | H92: 59.31059037 | I92: 157.105091 | J92: 65.31059037 | M92: -0.007301048465 | N92: 4.923540807 | O92: -0.01686039532 | P92: 7.423540807 | Q92: 0.01531145247 | R92: 12.92354081
C93: 2.384615385 | D93: 58.91776928 | E93: 142.8808344 | F93: 58.91776928 | G93: 148.8423729 | H93: 61.41776928 | I93: 163.1500652 | J93: 67.41776928 | M93: -0.006998839305 | N93: 4.923428483 | O93: -0.01628193293 | P93: 7.423428483 | Q93: 0.01483288472 | R93: 12.92342848
C94: 2.4 | D94: 61.11593597 | E94: 149.0782463 | F94: 61.11593597 | G94: 155.0782463 | H94: 63.61593597 | I94: 169.4782463 | J94: 69.61593597 | M94: -0.006707886796 | N94: 4.923320809 | O94: -0.01571933172 | P94: 7.423320809 | Q94: 0.01436452712 | R94: 12.92332081
C95: 2.415384615 | D95: 63.40944745 | E95: 155.5735885 | F95: 63.40944745 | G95: 161.61205 | H95: 65.90944745 | I95: 176.1043577 | J95: 71.90944745 | M95: -0.006427826278 | N95: 4.92321761 | O95: -0.01517233172 | P95: 7.42321761 | Q95: 0.01390637858 | R95: 12.92321761
C96: 2.430769231 | D96: 65.80288727 | E96: 162.3824029 | F96: 65.80288727 | G96: 168.459326 | H96: 68.30288727 | I96: 183.0439414 | J96: 74.30288727 | M96: -0.00615830276 | N96: 4.923118721 | O96: -0.01464066952 | P96: 7.423118721 | Q96: 0.01345842721 | R96: 12.92311872
C97: 2.446153846 | D97: 68.30107808 | E97: 169.5210987 | F97: 68.30107808 | G97: 175.6364833 | H97: 70.80107808 | I97: 190.3134064 | J97: 76.80107808 | M97: -0.005898970734 | N97: 4.923023978 | O97: -0.01412407872 | P97: 7.423023978 | Q97: 0.01302065056 | R97: 12.92302398
C98: 2.461538462 | D98: 70.90909499 | E98: 177.007003 | F98: 70.90909499 | G98: 183.1608492 | H98: 73.40909499 | I98: 197.93008 | J98: 79.40909499 | M98: -0.005649493991 | N98: 4.922933224 | O98: -0.01362229026 | P98: 7.422933224 | Q98: 0.01259301595 | R98: 12.92293322
C99: 2.476923077 | D99: 73.63227965 | E99: 184.8584157 | F99: 73.63227965 | G99: 191.0507234 | H99: 76.13227965 | I99: 205.9122619 | J99: 82.13227965 | M99: -0.00540954544 | N99: 4.922846309 | O99: -0.01313503293 | P99: 7.422846309 | Q99: 0.01217548087 | R99: 12.92284631
C100: 2.492307692 | D100: 76.47625528 | E100: 193.094667 | F100: 76.47625528 | G100: 199.3254362 | H100: 78.97625528 | I100: 214.2792824 | J100: 84.97625528 | M100: -0.005178806932 | N100: 4.922763085 | O100: -0.01266203363 | P100: 7.422763085 | Q100: 0.01176799327 | R100: 12.92276309
C101: 2.507692308 | D101: 79.44694246 | E101: 201.7361788 | F101: 79.44694246 | G101: 208.0054096 | H101: 81.94694246 | I101: 223.0515634 | J101: 87.94694246 | M101: -0.004956969077 | N101: 4.922683411 | O101: -0.01220301783 | P101: 7.422683411 | Q101: 0.01137049194 | R101: 12.92268341
C102: 2.523076923 | D102: 82.55057598 | E102: 210.8045302 | F102: 82.55057598 | G102: 217.1122225 | H102: 85.05057598 | I102: 232.250684 | J102: 91.05057598 | M102: -0.004743731073 | N102: 4.92260715 | O102: -0.01175770991 | P102: 7.42260715 | Q102: 0.01098290691 | R102: 12.92260715
C103: 2.538461538 | D103: 85.7937226 | E103: 220.3225266 | F103: 85.7937226 | G103: 226.6686804 | H103: 88.2937226 | I103: 241.8994497 | J103: 94.2937226 | M103: -0.004538800528 | N103: 4.92253417 | O103: -0.01132583349 | P103: 7.42253417 | Q103: 0.01060515984 | R103: 12.92253417
C104: 2.553846154 | D104: 89.18329993 | E104: 230.3142737 | F104: 89.18329993 | G104: 236.6988891 | H104: 91.68329993 | I104: 252.021966 | J104: 97.68329993 | M104: -0.004341893292 | N104: 4.922464342 | O104: -0.01090711177 | P104: 7.422464342 | Q104: 0.01023716439 | R104: 12.92246434
C105: 2.569230769 | D105: 92.72659645 | E105: 240.8052555 | F105: 92.72659645 | G105: 247.2283324 | H105: 95.22659645 | I105: 262.643717 | J105: 101.2265964 | M105: -0.004152733286 | N105: 4.922397544 | O105: -0.01050126789 | P105: 7.422397544 | Q105: 0.009878826663 | R105: 12.92239754
C106: 2.584615385 | D106: 96.43129269 | E106: 251.822418 | F106: 96.43129269 | G106: 258.2839565 | H106: 98.93129269 | I106: 273.7916488 | J106: 104.9312927 | M106: -0.003971052331 | N106: 4.922333655 | O106: -0.0101080252 | P106: 7.422333655 | Q106: 0.00953004556 | R106: 12.92233366
C107: 2.6 | D107: 100.3054837 | E107: 263.3942577 | F107: 100.3054837 | G107: 269.8942577 | H107: 102.8054837 | I107: 285.4942577 | J107: 108.8054837 | M107: -0.003796589982 | N107: 4.922272562 | O107: -0.009727107579 | P107: 7.422272562 | Q107: 0.009190713241 | R107: 12.92227256
C108: 2.615384615 | D108: 104.3577031 | E108: 275.5509158 | F108: 104.3577031 | G108: 282.0893773 | H108: 106.8577031 | I108: 297.781685 | J108: 112.8577031 | M108: -0.003629093365 | N108: 4.922214153 | O108: -0.009358239707 | P108: 7.422214153 | Q108: 0.008860715509 | R108: 12.92221415
C109: 2.630769231 | D109: 108.5969479 | E109: 288.3242784 | F109: 108.5969479 | G109: 294.9012015 | H109: 111.0969479 | I109: 310.6858169 | J109: 117.0969479 | M109: -0.003468317013 | N109: 4.922158321 | O109: -0.009001147363 | P109: 7.422158321 | Q109: 0.008539932232 | R109: 12.92215832
C110: 2.646153846 | D110: 113.0327061 | E110: 301.7480838 | F110: 113.0327061 | G110: 308.3634684 | H110: 115.5327061 | I110: 324.2403914 | J110: 121.5327061 | M110: -0.003314022702 | N110: 4.922104962 | O110: -0.008655557669 | P110: 7.422104962 | Q110: 0.00822823775 | R110: 12.92210496
C111: 2.661538462 | D111: 117.6749843 | E111: 315.8580351 | F111: 117.6749843 | G111: 322.5118812 | H111: 120.1749843 | I111: 338.481112 | J111: 126.1749843 | M111: -0.003165979297 | N111: 4.922053977 | O111: -0.008321199341 | P111: 7.422053977 | Q111: 0.007925501285 | R111: 12.92205398
C112: 2.676923077 | D112: 122.5343387 | E112: 330.691922 | F112: 122.5343387 | G112: 337.3842297 | H112: 125.0343387 | I112: 353.4457681 | J112: 131.0343387 | M112: -0.003023962587 | N112: 4.92200527 | O112: -0.007997802929 | P112: 7.42200527 | Q112: 0.007631587339 | R112: 12.92200527
C113: 2.692307692 | D113: 127.6219067 | E113: 346.2897488 | F113: 127.6219067 | G113: 353.020518 | H113: 130.1219067 | I113: 369.1743642 | J113: 136.1219067 | M113: -0.002887755134 | N113: 4.921958747 | O113: -0.007685101036 | P113: 7.421958747 | Q113: 0.007346356103 | R113: 12.92195875
C114: 2.707692308 | D114: 132.9494413 | E114: 362.6938718 | F114: 132.9494413 | G114: 369.4631026 | H114: 135.4494413 | I114: 385.7092564 | J114: 141.4494413 | M114: -0.002757146116 | N114: 4.92191432 | O114: -0.007382828533 | P114: 7.42191432 | Q114: 0.007069663838 | R114: 12.92191432
C115: 2.723076923 | D115: 138.529347 | E115: 379.949145 | F115: 138.529347 | G115: 386.7568373 | H115: 141.029347 | I115: 403.0952988 | J115: 147.029347 | M115: -0.002631931176 | N115: 4.921871903 | O115: -0.007090722755 | P115: 7.421871903 | Q115: 0.006801363267 | R115: 12.9218719
C116: 2.738461538 | D116: 144.3747185 | E116: 398.1030752 | F116: 144.3747185 | G116: 404.9492291 | H116: 146.8747185 | I116: 421.3799983 | J116: 152.8747185 | M116: -0.002511912272 | N116: 4.921831411 | O116: -0.006808523689 | P116: 7.421831411 | Q116: 0.006541303951 | R116: 12.92183141
C117: 2.753846154 | D117: 150.4993812 | E117: 417.2059882 | F117: 150.4993812 | G117: 424.0906035 | H117: 152.9993812 | I117: 440.6136805 | J117: 158.9993812 | M117: -0.002396897524 | N117: 4.921792767 | O117: -0.006535974148 | P117: 7.421792767 | Q117: 0.006289332654 | R117: 12.92179277
C118: 2.769230769 | D118: 156.9179348 | E118: 437.3112042 | F118: 156.9179348 | G118: 444.2342811 | H118: 159.4179348 | I118: 460.8496657 | J118: 165.4179348 | M118: -0.002286701073 | N118: 4.921755891 | O118: -0.006272819937 | P118: 7.421755891 | Q118: 0.006045293704 | R118: 12.92175589
C119: 2.784615385 | D119: 163.6457995 | E119: 458.4752263 | F119: 163.6457995 | G119: 465.4367648 | H119: 166.1457995 | I119: 482.1444571 | J119: 172.1457995 | M119: -0.002181142933 | N119: 4.921720711 | O119: -0.006018810003 | P119: 7.421720711 | Q119: 0.005809029339 | R119: 12.92172071
C120: 2.8 | D120: 170.6992645 | E120: 480.7579407 | F120: 170.6992645 | G120: 487.7579407 | H120: 173.1992645 | I120: 504.5579407 | J120: 179.1992645 | M120: -0.002080048847 | N120: 4.921687155 | O120: -0.005773696572 | P120: 7.421687155 | Q120: 0.005580380046 | R120: 12.92168716
C121: 2.815384615 | D121: 178.0955405 | E121: 504.2228295 | F121: 178.0955405 | G121: 511.2612911 | H121: 180.5955405 | I121: 528.1535988 | J121: 186.5955405 | M121: -0.001983250145 | N121: 4.921655155 | O121: -0.005537235288 | P121: 7.421655155 | Q121: 0.005359184882 | R121: 12.92165515
C122: 2.830769231 | D122: 185.8528148 | E122: 528.937199 | F122: 185.8528148 | G122: 536.014122 | H122: 188.3528148 | I122: 552.9987374 | J122: 194.3528148 | M122: -0.001890583612 | N122: 4.921624643 | O122: -0.005309185322 | P122: 7.421624643 | Q122: 0.005145281795 | R122: 12.92162464
C123: 2.846153846 | D123: 193.9903102 | E123: 554.9724214 | F123: 193.9903102 | G123: 562.087806 | H123: 196.4903102 | I123: 579.1647291 | J123: 202.4903102 | M123: -0.00180189134 | N123: 4.921595557 | O123: -0.005089309488 | P123: 7.421595557 | Q123: 0.004938507916 | R123: 12.92159556
C124: 2.861538462 | D124: 202.5283475 | E124: 582.4041943 | F124: 202.5283475 | G124: 589.5580404 | H124: 205.0283475 | I124: 606.7272712 | J124: 211.0283475 | M124: -0.001717020602 | N124: 4.921567836 | O124: -0.004877374336 | P124: 7.421567836 | Q124: 0.004738699857 | R124: 12.92156784
C125: 2.876923077 | D125: 211.488412 | E125: 611.312816 | F125: 211.488412 | G125: 618.5051237 | H125: 213.988412 | I125: 635.7666622 | J125: 219.988412 | M125: -0.001635823712 | N125: 4.92154142 | O125: -0.004673150245 | P125: 7.42154142 | Q125: 0.00454569398 | R125: 12.92154142
C126: 2.892307692 | D126: 220.8932245 | E126: 641.7834802 | F126: 220.8932245 | G126: 649.0142495 | H126: 223.3932245 | I126: 666.3680956 | J126: 229.3932245 | M126: -0.0015581579 | N126: 4.921516253 | O126: -0.004476411503 | P126: 7.421516253 | Q126: 0.004359326663 | R126: 12.92151625
C127: 2.907692308 | D127: 230.7668166 | E127: 673.9065897 | F127: 230.7668166 | G127: 681.1758204 | H127: 233.2668166 | I127: 698.6219743 | J127: 239.2668166 | M127: -0.001483885178 | N127: 4.921492282 | O127: -0.004286936371 | P127: 7.421492282 | Q127: 0.004179434551 | R127: 12.92149228
C128: 2.923076923 | D128: 241.1346102 | E128: 707.7780915 | F128: 241.1346102 | G128: 715.0857838 | H128: 243.6346102 | I128: 732.6242453 | J128: 249.6346102 | M128: -0.001412872215 | N128: 4.921469453 | O128: -0.004104507151 | P128: 7.421469453 | Q128: 0.004005854793 | R128: 12.92146945
C129: 2.938461538 | D129: 252.023504 | E129: 743.4998347 | F129: 252.023504 | G129: 750.8459885 | H129: 254.523504 | I129: 768.4767578 | J129: 260.523504 | M129: -0.001344990212 | N129: 4.921447716 | O129: -0.003928910236 | P129: 7.421447716 | Q129: 0.003838425266 | R129: 12.92144772
C130: 2.953846154 | D130: 263.461963 | E130: 781.1799521 | F130: 263.461963 | G130: 788.5645675 | H130: 265.961963 | I130: 806.2876444 | J130: 271.961963 | M130: -0.001280114777 | N130: 4.921427024 | O130: -0.003759936154 | P130: 7.421427024 | Q130: 0.003676984785 | R130: 12.92142702
C131: 2.969230769 | D131: 275.4801161 | E131: =x*(y+1) -> 820.9332677 | F131: 275.4801161 | G131: =x*(z+1) -> 828.3563446 | H131: 277.9801161 | I131: =x*(w+1) -> 846.1717292 | J131: 283.9801161 | M131: =-1/E131 -> -0.001218125808 | N131: 4.92140733 | O131: -0.003597379605 | P131: 7.42140733 | Q131: 0.003521373306 | R131: 12.92140733
C132: =C131+dx -> 2.984615385 | D132: 288.1098586 | E132: 862.8817319 | F132: =F131+E131*dx -> 288.1098586 | G132: 870.3432704 | H132: 290.6098586 | I132: 888.2509627 | J132: 296.6098586 | M132: -0.001158907372 | N132: 4.92138859 | O132: =-1/H132 -> -0.003441039491 | P132: =P131+$M131*dx -> 7.42138859 | Q132: =1/J132 -> 0.003371432105 | R132: =R131+$M131*dx -> 12.92138859
C133: 3 | D133: =F133 -> 301.3849622 | E133: 907.1548866 | F133: 301.3849622 | G133: 914.6548866 | H133: =F133+H$3-5 -> 303.8849622 | I133: 932.6548866 | J133: =H133+6 -> 309.8849622 | M133: -0.001102347587 | N133: =N132+M132*dx -> 4.92137076 | O133: -0.003290718938 | P133: 7.42137076 | Q133: 0.003227003959 | R133: 12.92137076
C134: 3.015384615 | D134: 315.3411912 | E134: 953.8903613 | F134: 315.3411912 | G134: 961.4288228 | H134: 317.8411912 | I134: 979.5211305 | J134: 323.8411912 | M134: -0.00104833851 | N134: 4.921353801 | O134: -0.003146225309 | P134: 7.421353801 | Q134: 0.003087933305 | R134: 12.9213538
C135: 3.030769231 | D135: 330.0164276 | E135: 1003.234404 | F135: 330.0164276 | G135: 1010.811327 | H135: 332.5164276 | I135: 1028.995942 | J135: 338.5164276 | M135: -0.0009967760241 | N135: 4.921337673 | O135: -0.003007370214 | P135: 7.421337673 | Q135: 0.002954066387 | R135: 12.92133767
C136: 3.046153846 | D136: 345.450803 | E136: 1055.342446 | F136: 345.450803 | G136: 1062.957831 | H136: 347.950803 | I136: 1081.234754 | J136: 353.950803 | M136: -0.0009475597269 | N136: 4.921322338 | O136: -0.002873969513 | P136: 7.421322338 | Q136: 0.002825251395 | R136: 12.92132234
C137: 3.061538462 | D137: 361.6868406 | E137: 1110.379712 | F137: 361.6868406 | G137: 1118.033558 | H137: 364.1868406 | I137: 1136.402789 | J137: 370.1868406 | M137: -0.0009005928234 | N137: 4.92130776 | O137: -0.00274584331 | P137: 7.42130776 | Q137: 0.002701338595 | R137: 12.92130776
C138: 3.076923077 | D138: 378.7696054 | E138: 1168.521863 | F138: 378.7696054 | G138: 1176.214171 | H138: 381.2696054 | I138: 1194.675709 | J138: 387.2696054 | M138: -0.0008557820198 | N138: 4.921293905 | O138: -0.002622815944 | P138: 7.421293905 | Q138: 0.00258218044 | R138: 12.9212939
C139: 3.092307692 | D139: 396.7468649 | E139: 1229.95569 | F139: 396.7468649 | G139: 1237.686459 | H139: 399.2468649 | I139: 1256.240305 | J139: 405.2468649 | M139: -0.0008130374194 | N139: 4.921280739 | O139: -0.002504715974 | P139: 7.421280739 | Q139: 0.002467631675 | R139: 12.92128074
C140: 3.107692308 | D140: 415.6692601 | E140: 1294.879854 | F140: 415.6692601 | G140: 1302.649085 | H140: 418.1692601 | I140: 1321.295239 | J140: 424.1692601 | M140: -0.0007722724209 | N140: 4.921268231 | O140: -0.002391376161 | P140: 7.421268231 | Q140: 0.002357549436 | R140: 12.92126823
C141: 3.123076923 | D141: 435.5904886 | E141: 1363.50568 | F141: 435.5904886 | G141: 1371.313372 | H141: 438.0904886 | I141: 1390.051834 | J141: 444.0904886 | M141: -0.0007334036189 | N141: 4.921256349 | O141: -0.002282633442 | P141: 7.421256349 | Q141: 0.00225179333 | R141: 12.92125635
C142: 3.138461538 | D142: 456.5674991 | E142: 1436.057997 | F142: 456.5674991 | G142: 1443.904151 | H142: 459.0674991 | I142: 1462.73492 | J142: 465.0674991 | M142: -0.0006963507059 | N142: 4.921245066 | O142: -0.002178328899 | P142: 7.421245066 | Q142: 0.002150225509 | R142: 12.92124507
C143: 3.153846154 | D143: 478.660699 | E143: 1512.776051 | F143: 478.660699 | G143: 1520.660666 | H143: 481.160699 | I143: 1539.583743 | J143: 487.160699 | M143: -0.0006610363771 | N143: 4.921234353 | O143: -0.00207830773 | P143: 7.421234353 | Q143: 0.002052710742 | R143: 12.92123435
C144: 3.169230769 | D144: 501.9341767 | E144: 1593.914468 | F144: 501.9341767 | G144: 1601.837545 | H144: 504.4341767 | I144: 1620.852929 | J144: 510.4341767 | M144: -0.000627386237 | N144: 4.921224183 | O144: -0.001982419206 | P144: 7.421224183 | Q144: 0.001959116465 | R144: 12.92122418
C145: 3.184615385 | D145: 526.4559378 | E145: 1679.744294 | F145: 526.4559378 | G145: 1687.705833 | H145: 528.9559378 | I145: 1706.813525 | J145: 534.9559378 | M145: -0.0005953287078 | N145: 4.921214531 | O145: -0.001890516636 | P145: 7.421214531 | Q145: 0.001869312834 | R145: 12.92121453
C146: 3.2 | D146: 552.2981577 | E146: 1770.554105 | F146: 552.2981577 | G146: 1778.554105 | H146: 554.7981577 | I146: 1797.754105 | J146: 560.7981577 | M146: -0.0005647949404 | N146: 4.921205372 | O146: -0.001802457319 | P146: 7.421205372 | Q146: 0.001783172762 | R146: 12.92120537
C147: 3.215384615 | D147: 579.5374516 | E147: 1866.651191 | F147: 579.5374516 | G147: 1874.689652 | H147: 582.0374516 | I147: 1893.98196 | J147: 588.0374516 | M147: -0.0005357187272 | N147: 4.921196683 | O147: -0.001718102499 | P147: 7.421196683 | Q147: 0.001700571957 | R147: 12.92119668
C148: 3.230769231 | D148: 608.2551622 | E148: 1968.362832 | F148: 608.2551622 | G148: 1976.439755 | H148: 610.7551622 | I148: 1995.82437 | J148: 616.7551622 | M148: -0.0005080364168 | N148: 4.921188441 | O148: -0.001637317311 | P148: 7.421188441 | Q148: 0.001621388942 | R148: 12.92118844
C149: 3.246153846 | D149: 638.5376673 | E149: 2076.037659 | F149: 638.5376673 | G149: 2084.153043 | H149: 641.0376673 | I149: 2103.629966 | J149: 647.0376673 | M149: -0.0004816868306 | N149: 4.921180626 | O149: -0.001559970733 | P149: 7.421180626 | Q149: 0.001545505077 | R149: 12.92118063
C150: 3.261538462 | D150: 670.4767082 | E150: 2190.04711 | F150: 670.4767082 | G150: 2198.200956 | H150: 672.9767082 | I150: 2217.770187 | J150: 678.9767082 | M150: -0.0004566111822 | N150: 4.921173215 | O150: -0.001485935528 | P150: 7.421173215 | Q150: 0.001472804572 | R150: 12.92117321
C151: 3.276923077 | D151: 704.1697407 | E151: 2310.786996 | F151: 704.1697407 | G151: 2318.979304 | H151: 706.6697407 | I151: 2338.640843 | J151: 712.6697407 | M151: -0.0004327529978 | N151: 4.92116619 | O151: -0.001415088184 | P151: 7.42116619 | Q151: 0.00140317449 | R151: 12.92116619
C152: 3.292307692 | D152: 739.7203099 | E152: 2438.679174 | F152: 739.7203099 | G152: 2446.909943 | H152: 742.2203099 | I152: 2466.663789 | J152: 748.2203099 | M152: -0.0004100580391 | N152: 4.921159532 | O152: -0.001347308861 | P152: 7.421159532 | Q152: 0.001336504752 | R152: 12.92115953
C153: 3.307692308 | D153: 777.238451 | E153: 2574.173338 | F153: 777.238451 | G153: 2582.442569 | H153: 779.738451 | I153: 2602.288723 | J153: 785.738451 | M153: -0.0003884742279 | N153: 4.921153224 | O153: -0.001282481323 | P153: 7.421153224 | Q153: 0.00127268813 | R153: 12.92115322
C154: 3.323076923 | D154: 816.8411178 | E154: 2717.748945 | F154: 816.8411178 | G154: 2726.056637 | H154: 819.3411178 | I154: 2745.995099 | J154: 825.3411178 | M154: -0.0003679515732 | N154: 4.921147247 | O154: -0.001220492879 | P154: 7.421147247 | Q154: 0.001211620236 | R154: 12.92114725
C155: 3.338461538 | D155: 858.65264 | E155: 2869.917275 | F155: 858.65264 | G155: 2878.263429 | H155: 861.15264 | I155: 2898.294198 | J155: 867.15264 | M155: -0.0003484420993 | N155: 4.921141587 | O155: -0.00116123432 | P155: 7.421141587 | Q155: 0.001153199511 | R155: 12.92114159
C156: 3.353846154 | D156: 902.8052134 | E156: 3031.223639 | F156: 902.8052134 | G156: 3039.608254 | H156: 905.3052134 | I156: 3059.731331 | J156: 911.3052134 | M156: -0.0003298997762 | N156: 4.921136226 | O156: -0.001104599847 | P156: 7.421136226 | Q156: 0.001097327202 | R156: 12.92113623
C157: 3.369230769 | D157: 949.4394233 | E157: 3202.249749 | F157: 949.4394233 | G157: 3210.672826 | H157: 951.9394233 | I157: 3230.888211 | J157: 957.9394233 | M157: -0.0003122804523 | N157: 4.92113115 | O157: -0.001050487012 | P157: 7.42113115 | Q157: 0.001043907345 | R157: 12.92113115
C158: 3.384615385 | D158: 998.704804 | E158: 3383.61626 | F158: 998.704804 | G158: 3392.077798 | H158: 1001.204804 | I158: 3412.385491 | J158: 1007.204804 | M158: -0.0002955417882 | N158: 4.921126346 | O158: -0.0009987966458 | P158: 7.421126346 | Q158: 0.0009928467338 | R158: 12.92112635
C159: 3.4 | D159: 1050.760439 | E159: 3575.985492 | F159: 1050.760439 | G159: 3584.485492 | H159: 1053.260439 | I159: 3604.885492 | J159: 1059.260439 | M159: -0.0002796431927 | N159: 4.921121799 | O159: -0.0009494327928 | P159: 7.421121799 | Q159: 0.0009440548928 | R159: 12.9211218
C160: 3.415384615 | D160: 1105.7756 | E160: 3780.064358 | F160: 1105.7756 | G160: 3788.602819 | H160: 1108.2756 | I160: 3809.095127 | J160: 1114.2756 | M160: -0.0002645457604 | N160: 4.921117497 | O160: -0.0009023026401 | P160: 7.421117497 | Q160: 0.0008974440433 | R160: 12.9211175
C161: 3.430769231 | D161: 1163.930436 | E161: 3996.607497 | F161: 1163.930436 | G161: 4005.184421 | H161: 1166.430436 | I161: 4025.769036 | J161: 1172.430436 | M161: -0.0002502122114 | N161: 4.921113427 | O161: -0.0008573164492 | P161: 7.421113427 | Q161: 0.0008529290684 | R161: 12.92111343
C162: 3.446153846 | D162: 1225.416706 | E162: 4226.420647 | F162: 1225.416706 | G162: 4235.036032 | H162: 1227.916706 | I162: 4255.712955 | J162: 1233.916706 | M162: -0.000236606832 | N162: 4.921109578 | O162: -0.0008143874869 | P162: 7.421109578 | Q162: 0.0008104274749 | R162: 12.92110958
C163: 3.461538462 | D163: 1290.438562 | E163: 4470.364252 | F163: 1290.438562 | G163: 4479.018099 | H163: 1292.938562 | I163: 4499.787329 | J163: 1298.938562 | M163: -0.000223695418 | N163: 4.921105938 | O163: -0.0007734319554 | P163: 7.421105938 | Q163: 0.0007698593524 | R163: 12.92110594
C164: 3.476923077 | D164: 1359.213396 | E164: 4729.357348 | F164: 1359.213396 | G164: 4738.049655 | H164: 1361.713396 | I164: 4758.911194 | J164: 1367.713396 | M164: -0.000211445219 | N164: 4.921102496 | O164: -0.0007343689227 | P164: 7.421102496 | Q164: 0.0007311473315 | R164: 12.9211025
C165: 3.492307692 | D165: 1431.97274 | E165: 5004.381724 | F165: 1431.97274 | G165: 5013.112493 | H165: 1434.47274 | I165: 5034.066339 | J165: 1440.47274 | M165: -0.0001998248845 | N165: 4.921099243 | O165: -0.0006971202533 | P165: 7.421099243 | Q165: 0.0006942165388 | R165: 12.92109924
C166: 3.507692308 | D166: 1508.963228 | E166: 5296.486401 | F166: 1508.963228 | G166: 5305.255632 | H166: 1511.463228 | I166: 5326.301785 | J166: 1517.463228 | M166: -0.0001888044119 | N166: 4.921096169 | O166: -0.0006616105382 | P166: 7.421096169 | Q166: 0.0006589945518 | R166: 12.92109617
C167: 3.523076923 | D167: 1590.447634 | E167: 5606.792435 | F167: 1590.447634 | G167: 5615.600128 | H167: 1592.947634 | I167: 5636.738589 | J167: 1598.947634 | M167: -0.0001783550955 | N167: 4.921093264 | O167: -0.0006277670266 | P167: 7.421093264 | Q167: 0.0006254113508 | R167: 12.92109326
C168: 3.538461538 | D168: 1676.70598 | E168: 5936.498082 | F168: 1676.70598 | G168: 5945.344236 | H168: 1679.20598 | I168: 5966.575005 | J168: 1685.20598 | M168: -0.0001684494775 | N168: 4.92109052 | O168: -0.0005955195563 | P168: 7.42109052 | Q168: 0.0005933992711 | R168: 12.92109052
C169: 3.553846154 | D169: 1768.036719 | E169: 6286.884341 | F169: 1768.036719 | G169: 6295.768956 | H169: 1770.536719 | I169: 6317.092033 | J169: 1776.536719 | M169: -0.0001590613006 | N169: 4.921087929 | O169: -0.0005648004862 | P169: 7.421087929 | Q169: 0.000562892953 | R169: 12.92108793
C170: 3.569230769 | D170: 1864.758017 | E170: 6659.320922 | F170: 1864.758017 | G170: 6668.243999 | H170: 1867.258017 | I170: 6689.659383 | J170: 1873.258017 | M170: -0.0001501654616 | N170: 4.921085482 | O170: -0.000535544628 | P170: 7.421085482 | Q170: 0.0005338292915 | R170: 12.92108548
C171: 3.584615385 | D171: 1967.209108 | E171: 7055.272649 | F171: 1967.209108 | G171: 7064.234187 | H171: 1969.709108 | I171: 7085.741879 | J171: 1975.709108 | M171: -0.0001417379667 | N171: 4.921083172 | O171: -0.000507689179 | P171: 7.421083172 | Q171: 0.0005061473857 | R171: 12.92108317
C172: 3.6 | D172: 2075.751764 | E172: 7476.306351 | F172: 2075.751764 | G172: 7485.306351 | H172: 2078.251764 | I172: 7506.906351 | J172: 2084.251764 | M172: -0.0001337558887 | N172: 4.921080991 | O172: -0.0004811736563 | P172: 7.421080991 | Q172: 0.0004797884868 | R172: 12.92108099
C173: 3.615384615 | D173: 2190.771862 | E173: 7924.09827 | F173: 2190.771862 | G173: 7933.136731 | H173: 2193.271862 | I173: 7954.829039 | J173: 2199.271862 | M173: -0.0001261973244 | N173: 4.921078933 | O173: -0.0004559398301 | P173: 7.421078933 | Q173: 0.0004546959461 | R173: 12.92107893
C174: 3.630769231 | D174: 2312.681066 | E174: 8400.442024 | F174: 2312.681066 | G174: 8409.518947 | H174: 2315.181066 | I174: 8431.303563 | J174: 2321.181066 | M174: -0.0001190413549 | N174: 4.921076992 | O174: -0.0004319316596 | P174: 7.421076992 | Q174: 0.0004308151633 | R174: 12.92107699
C175: 3.646153846 | D175: 2441.918636 | E175: 8907.257179 | F175: 2441.918636 | G175: 8916.372564 | H175: 2444.418636 | I175: 8938.249487 | J175: 2450.418636 | M175: -0.0001122680057 | N175: 4.92107516 | O175: -0.0004090952284 | P175: 7.42107516 | Q175: 0.0004080935337 | R175: 12.92107516
C176: 3.661538462 | D176: 2578.953361 | E176: 9446.598462 | F176: 2578.953361 | G176: 9455.752308 | H176: 2581.453361 | I176: 9477.721539 | J176: 2587.453361 | M176: -0.0001058582096 | N176: 4.921073433 | O176: -0.0003873786817 | P176: 7.421073433 | Q176: 0.0003864803961 | R176: 12.92107343
C177: 3.676923077 | D177: 2724.285645 | E177: 10020.66568 | F177: 2724.285645 | G177: 10029.85799 | H177: 2726.785645 | I177: 10051.91953 | J177: 2732.785645 | M177: -9.979376938e-05 | N177: 4.921071804 | O177: -0.0003667321638 | P177: 7.421071804 | Q177: 0.0003659269806 | R177: 12.9210718
C178: 3.692307692 | D178: 2878.449733 | E178: 10631.8144 | F178: 2878.449733 | G178: 10641.04517 | H178: 2880.949733 | I178: 10663.19901 | J178: 2886.949733 | M178: -9.405732291e-05 | N178: 4.921070269 | O178: -0.0003471077571 | P178: 7.421070269 | Q178: 0.0003463863567 | R178: 12.92107027
C179: 3.707692308 | D179: 3042.016108 | E179: 11282.56742 | F179: 3042.016108 | G179: 11291.83665 | H179: 3044.516108 | I179: 11314.0828 | J179: 3050.516108 | M179: -8.863230886e-05 | N179: 4.921068822 | O179: -0.0003284594216 | P179: 7.421068822 | Q179: 0.0003278133813 | R179: 12.92106882
C180: 3.723076923 | D180: 3215.594068 | E180: 11975.62715 | F180: 3215.594068 | G180: 11984.93484 | H180: 3218.094068 | I180: 12007.2733 | J180: 3224.094068 | M180: -8.350293373e-05 | N180: 4.921067459 | O180: -0.0003107429363 | P180: 7.421067459 | Q180: 0.0003101646474 | R180: 12.92106746
C181: 3.738461538 | D181: 3399.834486 | E181: 12713.88893 | F181: 3399.834486 | G181: 12723.23508 | H181: 3402.334486 | I181: 12745.66585 | J181: 3408.334486 | M181: -7.865414004e-05 | N181: 4.921066174 | O181: -0.0002939158405 | P181: 7.421066174 | Q181: 0.0002933984338 | R181: 12.92106617
C182: 3.753846154 | D182: 3595.432777 | E182: 13500.45535 | F182: 3595.432777 | G182: 13509.83996 | H182: 3597.932777 | I182: 13532.36304 | J182: 3603.932777 | M182: -7.407157567e-05 | N182: 4.921064964 | O182: -0.0002779373773 | P182: 7.421064964 | Q182: 0.0002774746539 | R182: 12.92106496
C183: 3.769230769 | D183: 3803.13209 | E183: 14338.65173 | F183: 3803.13209 | G183: 14348.0748 | H183: 3805.63209 | I183: 14370.69019 | J183: 3811.63209 | M183: -6.974156421e-05 | N183: 4.921063824 | O183: -0.000262768438 | P183: 7.421063824 | Q183: 0.0002623548066 | R183: 12.92106382
C184: 3.784615385 | D184: 4023.726732 | E184: 15232.04271 | F184: 4023.726732 | G184: 15241.50425 | H184: 4026.226732 | I184: 15264.21194 | J184: 4032.226732 | M184: -6.565107642e-05 | N184: 4.921062751 | O184: -0.0002483715067 | P184: 7.421062751 | Q184: 0.0002480019271 | R184: 12.92106275
C185: 3.8 | D185: 4258.065851 | E185: 16184.45023 | F185: 4258.065851 | G185: 16193.95023 | H185: 4260.565851 | I185: 16216.75023 | J185: 4266.565851 | M185: -6.178770274e-05 | N185: 4.921061741 | O185: -0.0002347106077 | P185: 7.421061741 | Q185: 0.0002343805381 | R185: 12.92106174
C186: 3.815384615 | D186: 4507.057393 | E186: 17199.97282 | F186: 4507.057393 | G186: 17209.51128 | H186: 4509.557393 | I186: 17232.40359 | J186: 4515.557393 | M186: -5.813962675e-05 | N186: 4.921060791 | O186: -0.0002217512525 | P186: 7.421060791 | Q186: 0.0002214566028 | R186: 12.92106079
C187: 3.830769231 | D187: 4771.672359 | E187: 18283.00642 | F187: 4771.672359 | G187: 18292.58335 | H187: 4774.172359 | I187: 18315.56796 | J187: 4780.172359 | M187: -5.469559967e-05 | N187: 4.921059896 | O187: -0.0002094603891 | P187: 7.421059896 | Q187: 0.0002091974776 | R187: 12.9210599
C188: 3.846153846 | D188: 5052.949381 | E188: 19438.26685 | F188: 5052.949381 | G188: 19447.88224 | H188: 5055.449381 | I188: 19470.95916 | J188: 5061.449381 | M188: -5.144491572e-05 | N188: 4.921059055 | O188: -0.000197806352 | P188: 7.421059055 | Q188: 0.0001975718662 | R188: 12.92105905
C189: 3.861538462 | D189: 5351.999641 | E189: 20670.814 | F189: 5351.999641 | G189: 20680.46784 | H189: 5354.499641 | I189: 20703.63707 | J189: 5360.499641 | M189: -4.837738853e-05 | N189: 4.921058263 | O189: -0.0001867588135 | P189: 7.421058263 | Q189: 0.0001865497747 | R189: 12.92105826
C190: 3.876923077 | D190: 5670.012164 | E190: 21986.07793 | F190: 5670.012164 | G190: 21995.77023 | H190: 5672.512164 | I190: 22019.03177 | J190: 5678.512164 | M190: -4.548332828e-05 | N190: 4.921057519 | O190: -0.0001762887361 | P190: 7.421057519 | Q190: 0.0001761024668 | R190: 12.92105752
C191: 3.892307692 | D191: 6008.259516 | E191: 23389.88704 | F191: 6008.259516 | G191: 23399.61781 | H191: 6010.759516 | I191: 23422.97166 | J191: 6016.759516 | M191: -4.275351986e-05 | N191: 4.921056819 | O191: -0.0001663683262 | P191: 7.421056819 | Q191: 0.0001662024213 | R191: 12.92105682
C192: 3.907692308 | D192: 6368.103932 | E192: 24888.49844 | F192: 6368.103932 | G192: 24898.26767 | H192: 6370.603932 | I192: 24921.71383 | J192: 6376.603932 | M192: -4.017920174e-05 | N192: 4.921056162 | O192: -0.000156970989 | P192: 7.421056162 | Q192: 0.0001568232888 | R192: 12.92105616
C193: 3.923076923 | D193: 6751.003908 | E193: 26488.63072 | F193: 6751.003908 | G193: 26498.43841 | H193: 6753.503908 | I193: 26521.97687 | J193: 6759.503908 | M193: -3.77520458e-05 | N193: 4.921055543 | O193: -0.0001480712847 | P193: 7.421055543 | Q193: 0.0001479398508 | R193: 12.92105554
C194: 3.938461538 | D194: 7158.521304 | E194: 28197.49929 | F194: 7158.521304 | G194: 28207.34544 | H194: 7161.021304 | I194: 28230.97621 | J194: 7167.021304 | M194: -3.546413778e-05 | N194: 4.921054963 | O194: -0.0001396448855 | P194: 7.421054963 | Q194: 0.0001395279793 | R194: 12.92105496
C195: 3.953846154 | D195: 7592.328985 | E195: =x*(y+1) -> 30022.8546 | F195: 7592.328985 | G195: =x*(z+1) -> 30032.73922 | H195: 7594.828985 | I195: =x*(w+1) -> 30056.4623 | J195: 7600.828985 | M195: =-1/E195 -> -3.330795866e-05 | N195: 4.921054417 | O195: -0.0001316685342 | P195: 7.421054417 | Q195: 0.0001315645967 | R195: 12.92105442
C196: =C195+dx -> 3.969230769 | D196: 8054.219056 | E196: 31973.02333 | F196: =F195+E195*dx -> 8054.219056 | G196: 31982.94641 | H196: 8056.719056 | I196: 32006.76179 | J196: 8062.719056 | M196: -3.127636663e-05 | N196: 4.921053905 | O196: =-1/H196 -> -0.0001241200038 | P196: =P195+$M195*dx -> 7.421053905 | Q196: =1/J196 -> 0.000124027638 | R196: =R195+$M195*dx -> 12.9210539
C197: 3.984615385 | D197: =F197 -> 8546.111723 | E197: 34056.95286 | F197: 8546.111723 | G197: 34066.9144 | H197: =F197+H$3-5 -> 8548.611723 | I197: 34090.8221 | J197: =H197+6 -> 8554.611723 | M197: -2.936257991e-05 | N197: =N196+M196*dx -> 4.921053423 | O197: -0.0001169780582 | P197: 7.421053423 | Q197: 0.0001168960126 | R197: 12.92105342
C198: 4 | D198: 9070.064844 | E198: 36284.25938 | F198: 9070.064844 | G198: 36294.25938 | H198: 9072.564844 | I198: 36318.25938 | J198: 9078.564844 | M198: -2.756016017e-05 | N198: 4.921052972 | O198: -0.0001102224142 | P198: 7.421052972 | Q198: 0.0001101495685 | R198: 12.92105297
C199: 4.015384615 | D199: 9628.284219 | E199: 38665.27971 | F199: 9628.284219 | G199: 38675.31817 | H199: 9630.784219 | I199: 38699.41048 | J199: 9636.784219 | M199: -2.586299666e-05 | N199: 4.921052548 | O199: -0.0001038337042 | P199: 7.421052548 | Q199: 0.0001037690559 | R199: 12.92105255
C200: 4.030769231 | D200: 10223.13468 | E200: 41211.12746 | F200: 10223.13468 | G200: 41221.20439 | H200: 10225.63468 | I200: 41245.389 | J200: 10231.63468 | M200: -2.426529099e-05 | N200: 4.92105215 | O200: -9.779344087e-05 | P200: 7.42105215 | Q200: 9.773609317e-05 | R200: 12.92105215
... 62 more rows

Sheet Sheet3
